Cogmind - Beta 15 @@@ ROGUE MODE // 2025.05.28 @ 17:15:17 Player: Duduxx Result: Destroyed by B-60 Warrior with Heavy Mace Performance ------------- Evolutions (6) 3000 Regions Visited (11) 2200 Robots Destroyed (82) 410 Value Destroyed (3566) 3566 Prototype IDs (34) 680 Alien Tech Used (0) 0 Bonus (316) 316 TOTAL SCORE: 10172 Bonus ------- High Alert Combat Kills 16 Aligned with FarCom 300 Cogmind --------- Core Integrity 0/1150 Matter 239/300 Energy 68/325 System Corruption 25% Temperature Cool (0) Movement Treading (180) Location -4/Factory Parts ------- > --- POWER (2) -------- Antimatter Reactor > --- PROPULSION (5) --- Improved Treads Heavy Siege Treads Wheel > --- UTILITY (10) ----- Improved Heat Sink Improved Heat Sink Advanced Coolant Injector Improved Terrain Scan Processor Advanced Target Analyzer Improved Medium Armor Plating Advanced Focal Shield Improved Force Field Improved System Shield > --- WEAPON (2) ------- High-powered Shock Rifle Antimatter Cannon > --- INVENTORY (5) ---- Advanced Heat Sink Gravity Neutralizer Improved Terrain Scanner Micro-nuke Launcher Powered Hammer Peak State ------------ > --- POWER ------------ Light Ion Engine Light Antimatter Reactor > --- PROPULSION ------- Flexi-carbon Leg Myomer Leg Myomer Leg Armored Huge Wheel > --- UTILITY ---------- Advanced Coolant Injector Medium Storage Unit Long-range Terrain Scanner Improved Terrain Scan Processor Advanced Target Analyzer Improved Focal Shield Hacking Suite Experimental Hacking Suite Improved System Shield Improved System Shield > --- WEAPON ----------- Phase Cannon Railgun > --- INVENTORY -------- Light Antimatter Reactor Compact Wheel Gravity Neutralizer Improved Terrain Scanner High-powered Shock Rifle [Rating: 101] Favorites ----------- Power Light Nuclear Core Engine Cooled Deuterium Engine Power Core Light Nuclear Core Reactor Cold Fusion Reactor Propulsion Light Treads Treads Light Treads Leg VSS Leg Wheel Wheel Hover Unit Aerolev Unit Flight Unit Nuclear Pulse Thruster Utility Medium Storage Unit Device Transmission Jammer Storage Medium Storage Unit Processor Advanced Target Analyzer Hackware Hacking Suite Protection Improved Medium Armor Plating Weapon EM Pulse Gun Energy Gun EM Pulse Gun Energy Cannon Phase Cannon Ballistic Gun Railgun Ballistic Cannon Antimatter Cannon Launcher Proton Missile Launcher Impact Weapon Heavy Flail Slashing Weapon Katana Build | -11 -10 -10 -10 -9 -8 -7 -6 -5 -5 -5 -4 ------- Run | Yrd Mat Min Exi Min Mat Fac Fac Fac Upp Upp Fac Slots Evolved 12 | . . . . . 4 2 2 2 . . 2 Power 1 | . . . . . . 1 . . . . . Propulsion 3 | . . . . . . 1 1 1 . . . Utility 8 | . . . . . 4 . 1 1 . . 2 Weapon . | . . . . . . . . . . . . Parts Attached 134 | 5 . 2 1 . 22 12 16 9 7 . 60 Power 16 | 1 . . . . 3 4 1 . . . 7 Engine 8 | 1 . . . . 2 4 . . . . 1 Core 4 | . . . . . 1 . . . . . 3 Reactor 4 | . . . . . . . 1 . . . 3 Propulsion 35 | 1 . 1 . . 4 3 3 6 2 . 15 Treads 4 | 1 . 1 . . . . . . . . 2 Leg 14 | . . . . . 4 . 3 3 . . 4 Wheel 9 | . . . . . . 2 . . 1 . 6 Hover 1 | . . . . . . 1 . . . . . Flight 7 | . . . . . . . . 3 1 . 3 Utility 59 | 1 . 1 1 . 9 4 9 3 3 . 28 Device 31 | . . . . . 4 3 7 1 2 . 14 Storage 5 | 1 . . 1 . 1 . . . . . 2 Processor 9 | . . 1 . . 2 . 2 . . . 4 Hackware 9 | . . . . . . 1 . 2 1 . 5 Protection 5 | . . . . . 2 . . . . . 3 Artifact . | . . . . . . . . . . . . Weapon 24 | 2 . . . . 6 1 3 . 2 . 10 Energy Gun 13 | 2 . . . . 4 . 2 . 1 . 4 Energy Cannon 2 | . . . . . 1 . . . . . 1 Ballistic Gun 2 | . . . . . . . . . . . 2 Ballistic Cannon 1 | . . . . . . . . . . . 1 Launcher 3 | . . . . . 1 . 1 . . . 1 Special Weapon . | . . . . . . . . . . . . Impact Weapon 2 | . . . . . . 1 . . . . 1 Slashing Weapon 1 | . . . . . . . . . 1 . . Piercing Weapon . | . . . . . . . . . . . . Special Melee Weapon . | . . . . . . . . . . . . Unidentified Prototypes 9 | . . . . . 1 3 2 . . . 3 Corrupted Parts 4 | . . . . . . . 3 . . . 1 System Corruption 26 | . . . . . . . 17 . . . 9 Parts Lost 68 | . . . . . 7 6 2 . 12 4 37 Power 11 | . . . . . 1 2 . . 2 . 6 Propulsion 18 | . . . . . 2 1 . . 3 . 12 Utility 24 | . . . . . 2 1 2 . 5 3 11 Weapon 15 | . . . . . 2 2 . . 2 1 8 Highest Loss Streak 12 | . . . . . 5 4 1 . 8 4 12 To Critical Strikes 1 | . . . . . . . . . . . 1 Average Backups 6 | 1 3 4 5 6 8 8 9 7 4 5 5 Power . | . 1 1 1 1 1 . 1 1 1 1 . Propulsion . | . 1 . 1 1 . 1 2 1 . . . Utility 2 | . . 1 2 3 2 2 2 1 1 1 3 Weapon 2 | . 1 1 1 . 3 4 3 3 2 3 1 Tool/Special . | . . . . . . . . . . . . Unused Backups 9 | . . . . 2 1 1 4 . . . 1 Power 1 | . . . . . . . 1 . . . . Propulsion . | . . . . . . . . . . . . Utility 6 | . . . . 1 1 1 2 . . . 1 Weapon 2 | . . . . 1 . . 1 . . . . Tool/Special . | . . . . . . . . . . . . Average Slot Usage (%) 85 | . 71 82 100 100 95 88 97 88 66 41 73 Engine 6 | . 14 14 14 14 5 11 7 5 1 . 1 Core 1 | . . . . . 3 1 . . . . 3 Reactor 1 | . . . . . . . 4 5 3 . 2 Treads 5 | . 14 19 28 28 6 . . . . . . Leg 8 | . . . . . 9 14 24 10 . . 5 Wheel 2 | . . . . . . 2 . . . . 5 Flight 1 | . . . . . . . . 9 11 5 1 Device 15 | . . . . . 21 21 25 22 17 9 11 Storage 6 | . 14 14 14 14 9 7 6 2 . . 2 Processor 10 | . . 5 14 14 14 10 8 11 10 . 8 Hackware 7 | . . . . . . 2 3 8 11 17 17 Protection 2 | . . . . . 8 1 . . . . 2 Energy Gun 11 | . 28 28 28 28 14 10 12 8 5 5 2 Energy Cannon 1 | . . . . . 2 . . . . . 2 Peak Build Rating 101 | 5 5 9 10 12 37 46 68 78 77 34 101 Average Rating 47 | 4 5 6 9 10 32 41 58 72 56 29 73 On Entrance 25 | . 5 5 9 10 12 37 44 67 77 31 13 Naked Turns . | . . . . . . . . . . . . Heaviest Build 60 | 14 14 14 19 19 47 53 49 49 36 6 60 Greatest Support 75 | 20 20 40 40 40 40 41 59 75 24 6 70 Greatest Overweight (x) 11 | 1 . . . . 2 1 1 1 1 . 11 Average Overweight (x) . | . . . . . . . . . . . . Largest Inventory Capacity 15 | 8 8 8 10 10 15 15 10 10 5 5 15 Average Capacity 8 | 6 8 8 8 10 11 10 10 7 5 5 8 Most Carried 10 | 3 4 5 7 8 10 10 10 10 5 5 10 Average Carried 6 | 1 3 4 5 6 8 8 9 7 4 4 5 Final Capacity 10 | 8 8 8 10 10 10 10 10 5 5 5 5 Final Carried 10 | 3 4 5 6 8 10 10 10 5 5 5 5 Class Distribution -------------------- 54% | Mutant 17% | Hacker-Mutant 11% | Hacker-Skirmisher 9% | Scavenger-Mutant Dominant Class ---------------- Mutant | -10/Materials Mutant | -10/Mines Mutant | -10/Exiles Mutant | -9/Mines Mutant | -8/Materials Mutant | -7/Factory Mutant | -6/Factory Hacker-Mutant | -5/Factory Hacker-Mutant | -5/Upper Caves Hacker-Mutant | -5/Upper Caves Hacker-Skirmisher | -4/Factory Resources | -11 -10 -10 -10 -9 -8 -7 -6 -5 -5 -5 -4 ----------- Run | Yrd Mat Min Exi Min Mat Fac Fac Fac Upp Upp Fac Matter Collected 2236 | 250 . . . 30 251 113 269 176 80 . 1067 Remotely . | . . . . . . . . . . . . Salvage Created 3834 | . 41 . . 86 502 430 637 178 207 . 1753 Parts 168 | . 4 . . 6 26 9 22 10 9 . 82 Haulers Intercepted 4 | . . . . . 1 1 1 . . . 1 Recyclers Shooed 2 | . . . . . . . . . . . 2 Parts Field Recycled . | . . . . . . . . . . . . Retrieved Matter . | . . . . . . . . . . . . Parts Self-Destructed 5 | . . . . . . . . . 5 . . Prevented 1 | . . . . . . . . . 1 . . Kills | -11 -10 -10 -10 -9 -8 -7 -6 -5 -5 -5 -4 ------- Run | Yrd Mat Min Exi Min Mat Fac Fac Fac Upp Upp Fac Combat Hostiles Destroyed 59 | . . . . 2 11 5 8 3 3 . 27 Guns 33 | . . . . 2 7 2 4 3 3 . 12 Cannons 7 | . . . . . 1 . . . . . 6 AOE 11 | . . . . . 3 . 3 . . . 5 Classes Destroyed 15 | . 1 . . 1 4 2 2 1 . . 4 Worker 3 | . . . . . . . . . . . 3 Builder 5 | . . . . . 2 1 . . . . 2 Tunneler 1 | . . . . . . . . . . . 1 Hauler 4 | . . . . . 1 1 1 . . . 1 Recycler 2 | . . . . . . 1 . . . . 1 Mechanic 1 | . . . . . . . . . . . 1 Operator 1 | . . . . . . . 1 . . . . Watcher 6 | . 2 . . . 1 1 . . . . 2 Swarmer 9 | . . . . . 1 . 1 . . . 7 Grunt 24 | . . . . 2 7 4 4 2 . . 5 Brawler 2 | . . . . . . . 2 . . . . Duelist 2 | . . . . . . . . 1 . . 1 Sentry 6 | . . . . . 3 . . . . . 3 Hunter 4 | . . . . . . . . . . . 4 Programmer 9 | . . . . . . 1 1 . . . 7 Thug 1 | . . . . . . . . . 1 . . Savage 1 | . . . . . . . . . 1 . . Butcher 1 | . . . . . . . . . 1 . . Best Kill Streak 5 | . 1 . . 2 5 3 3 3 1 . 5 Combat Bots Only 4 | . . . . 2 4 2 3 3 1 . 3 Max Kills in Single Turn 2 | . 1 . . 1 2 2 2 1 1 . 2 Gunslinging 1 | . . . . . . 1 . . . . . Exploded 2 | . . . . . 1 . 2 . . . 2 Melee . | . . . . . . . . . . . . Uniques/NPCs Destroyed . | . . . . . . . . . . . . Combat | -11 -10 -10 -10 -9 -8 -7 -6 -5 -5 -5 -4 -------- Run | Yrd Mat Min Exi Min Mat Fac Fac Fac Upp Upp Fac Hostile Shots Fired 760 | . . . . 2 137 52 42 17 123 24 363 Missed 239 | . . . . 1 49 14 16 6 37 10 106 Hits 521 | . . . . 1 88 38 26 11 86 14 257 Melee 16 | . . . . . . . 3 2 1 . 10 Projectile 505 | . . . . 1 88 38 23 9 85 14 247 AOE 2 | . . . . . . . . . . . 2 Critical Strikes 26 | . . . . . 5 1 1 1 3 . 15 Damage Taken 9463 | . . 24 . 32 1411 603 465 252 1488 201 4987 Core 2266 | . . . . . 154 113 33 35 687 57 1187 Absorbed by Shields 82 | . . . . . . . . . . . 82 Ignored by Resistances 198 | . . . . . . . . . . . 198 Core Remaining (%) 78 | 100 . . . 100 72 83 96 . . 22 . Volleys Fired 269 | . 4 . . 3 40 22 38 7 17 1 137 Largest 2 | . 2 . . 2 2 2 2 2 2 2 2 Hottest 166 | . 80 . . 80 143 143 120 120 120 124 166 Shots Fired 472 | . 8 . . 6 64 35 77 14 31 2 235 Gun 356 | . 8 . . 6 48 35 74 12 28 1 144 Cannon 93 | . . . . . 9 . . . . . 84 Launcher 23 | . . . . . 7 . 3 2 3 1 7 Special . | . . . . . . . . . . . . Kinetic 89 | . . . . . . . . . . . 89 Thermal 259 | . . . . . 41 35 39 12 14 1 117 Explosive 12 | . . . . . 7 . . . . . 5 Electromagnetic 112 | . 8 . . 6 16 . 38 2 17 1 24 Robot Hit Streak 16 | . 3 . . 2 13 13 8 3 5 . 16 Robot Miss Streak 7 | . 3 . . 3 7 3 5 1 2 2 4 Penetration Max 1 | . . . . . . . . . . . 1 Secondary Targets 4 | . . . . . . 1 . 2 . . 1 Max Gunslinging Chain 1 | . . . . . . 1 . 1 . . 1 Shots Hit Robots 301 | . 4 . . 2 50 27 49 10 19 . 140 Core Hits 173 | . 2 . . 2 35 16 18 6 12 1 81 Critical Kills 2 | . . . . . . . . . . . 2 Critical Parts Destroyed 4 | . . . . . . 1 . . . . 3 Critical Strikes 21 | . . . . . . 3 5 . 2 . 11 Burn 7 | . . . . . . 2 1 . 1 . 3 Destroy 5 | . . . . . . . . . . . 5 Blast 1 | . . . . . . . . . . . 1 Corrupt 7 | . . . . . . . 4 . 1 . 2 Smash 1 | . . . . . . 1 . . . . . Melee Attacks 3 | . . . . . . 3 . . . . . Impact 3 | . . . . . . 3 . . . . . Slashing . | . . . . . . . . . . . . Piercing . | . . . . . . . . . . . . Sneak Attacks 1 | . . . . . . 1 . . . . . Combat Hostiles . | . . . . . . . . . . . . Follow-up Attacks . | . . . . . . . . . . . . Damage Inflicted 10418 | . 90 . . 30 1584 762 1364 290 545 20 5733 Guns 5369 | . 90 . . 30 797 532 932 202 404 . 2382 Cannons 1981 | . . . . . 207 . . . . . 1774 Explosions 2681 | . . . . . 552 . 423 88 141 20 1457 Melee 230 | . . . . . . 230 . . . . . Ramming 157 | . . . . . 28 . 9 . . . 120 Kinetic 1554 | . . . . . . . . . . . 1554 Thermal 4766 | . . . . . 749 532 693 202 285 . 2305 Explosive 1928 | . . . . . 552 . . . . . 1376 Electromagnetic 1783 | . 90 . . 30 255 . 662 88 260 20 378 Impact 230 | . . . . . . 230 . . . . . Slashing . | . . . . . . . . . . . . Piercing . | . . . . . . . . . . . . Highest Corruption 25 | . . . . . . 1 16 . . . 25 Average Corruption 5 | . . . . . . 1 6 . . . 6 Corruption Purged 21 | . . . . . . . 21 . . . . Corruption Blocked . | . . . . . . . . . . . . Effects 68 | . . . . . . 3 22 . . . 43 Message Errors 17 | . . . . . . 1 7 . . . 9 Matter Fused 13 | . . . . . . 1 4 . . . 8 Heat Flow Errors 2 | . . . . . . . . . . . 2 Energy Discharges 10 | . . . . . . . 4 . . . 6 Parts Rejected 3 | . . . . . . . 1 . . . 2 Parts Fused 1 | . . . . . . . 1 . . . . Data Loss (minor) 9 | . . . . . . . 2 . . . 7 Data Loss (major) 5 | . . . . . . 1 1 . . . 3 Misfires 3 | . . . . . . . 1 . . . 2 Misdirections 2 | . . . . . . . 1 . . . 1 Weapon Failures 3 | . . . . . . . . . . . 3 Overload Shots . | . . . . . . . . . . . . Overflow Damage 159 | . . . . . 2 78 . 11 5 . 63 Projectiles 26 | . . . . . 2 . . . . . 24 Explosions 54 | . . . . . . . . 11 5 . 38 Melee 79 | . . . . . . 78 . . . . 1 Knockbacks 6 | . . . . . 1 2 . . . . 3 Impact 4 | . . . . . 1 2 . . . . 1 Kinetic 2 | . . . . . . . . . . . 2 Secondary . | . . . . . . . . . . . . Self-Inflicted Damage 224 | . . . . . 18 . . 7 9 . 190 Shots 8 | . . . . . 3 . . 1 1 . 3 Rammed 27 | . . . . . 2 . . . . . 25 Targets Rammed 33 | . . . . . 6 . 1 . . . 26 Kicked 6 | . . . . . 4 . 1 . . . 1 Crushed . | . . . . . . . . . . . . Highest Temperature 537 | . 36 . . 42 73 537 60 120 196 9 198 Average Temperature 92 | . 16 . . 18 22 253 25 53 71 6 81 Received Heat Transfer 1731 | . . . . 15 747 279 81 81 207 . 321 Effects 4 | . . . . . . 4 . . . . . Damage (minor) 2 | . . . . . . 2 . . . . . Damage (major) 2 | . . . . . . 2 . . . . . Siege Activations . | . . . . . . . . . . . . Martial Activations . | . . . . . . . . . . . . Shielding Activations . | . . . . . . . . . . . . Robots Disrupted 1 | . . . . . . . . . . . 1 Combat Hostiles 1 | . . . . . . . . . . . 1 Robots Corrupted 7 | . . . . . . 2 2 . . . 3 Combat Hostiles 5 | . . . . . . 2 1 . . . 2 Parts Fried 7 | . . . . . . 2 1 . . . 4 Impact Corruptions 4 | . . . . . . 3 . . . . 1 Robots Melted 4 | . . . . . 1 1 . . . . 2 Combat Hostiles 3 | . . . . . . 1 . . . . 2 Parts Melted 19 | . . . . . 3 3 2 1 . . 10 Heat Transferred 8092 | . . . . . 1694 1280 1112 296 481 . 3229 Parts Sabotaged . | . . . . . . . . . . . . Parts Stolen . | . . . . . . . . . . . . Parts Stripped . | . . . . . . . . . . . . Power Chain Reactions 2 | . . . . . . . 2 . . . . Alert | -11 -10 -10 -10 -9 -8 -7 -6 -5 -5 -5 -4 ------- Run | Yrd Mat Min Exi Min Mat Fac Fac Fac Upp Upp Fac Maximum Alert Level 2 | . . . . . . . . . . . 2 Low Security (%) 88 | 100 100 100 . 100 100 100 100 100 . . 67 Level 1 11 | . . . . . . . . . . . 31 Level 2 . | . . . . . . . . . . . 1 Level 3 . | . . . . . . . . . . . . Level 4 . | . . . . . . . . . . . . Level 5 . | . . . . . . . . . . . . High Security . | . . . . . . . . . . . . Max Security . | . . . . . . . . . . . . Peak Influence 411 | . 7 . . 30 126 50 90 85 . . 411 Initial 39 | . . . . . 3 32 . 6 . . 39 Average 72 | . . . . 15 43 6 18 38 . . 159 Influence Increases 2708 | . 14 . . 40 393 144 262 87 270 . 1498 Destroy 0b10 Robot/C 1120 | . . . . 40 220 100 160 60 . . 540 Destroy 0b10 Robot/NC 115 | . 10 . . . 20 20 10 . . . 55 Destroy Leader 230 | . 4 . . . 54 24 22 10 . . 116 Successful Hack 4 | . . . . . 4 . . . . . . Disable Machine 315 | . . . . . 15 . 60 15 . . 225 Destroy Structure 384 | . . . . . 20 . 10 2 . . 352 Partial Spotted 15 | . . . . . . . . . . . 15 Lose Combat Pursuer 525 | . . . . . 60 . . . 270 . 195 Influence Decreases 2309 | . 14 . . 30 332 215 248 86 145 77 1162 Entered New Map 111 | . . . . . 7 39 . 8 6 27 24 Time Decay 1479 | . 14 . . 30 275 146 238 78 69 10 619 Lost Part 569 | . . . . . 50 30 10 . 70 40 369 Purge Threat 150 | . . . . . . . . . . . 150 Squads Dispatched 19 | . . . . 1 1 2 4 . . . 11 Investigation 1 | . . . . 1 . . . . . . . Extermination 9 | . . . . . . 2 2 . . . 5 Reinforcement 6 | . . . . . 1 . 2 . . . 3 Assault . | . . . . . . . . . . . . Garrison 3 | . . . . . . . . . . . 3 Intercept . | . . . . . . . . . . . . Searches Triggered . | . . . . . . . . . . . . Construction Impeded 2 | . . . . . 1 . . . . . 1 Haulers Reinforced 2 | . . . . . . . 1 . . . 1 Active Scanning Responses . | . . . . . . . . . . . . Cargo Convoy Interrupts . | . . . . . . . . . . . . Stealth | -11 -10 -10 -10 -9 -8 -7 -6 -5 -5 -5 -4 --------- Run | Yrd Mat Min Exi Min Mat Fac Fac Fac Upp Upp Fac Distress Signals 7 | . . . . . . . 1 . . . 6 Communications Jammed 32 | . . . . . 13 . 18 1 . . . Distress Signals 32 | . . . . . 13 . 18 1 . . . Times Spotted 150 | . 2 . . 3 24 6 16 3 33 4 59 Peak Tracking Total 12 | . 1 . . 3 8 4 3 3 12 4 8 Tactical Retreats 15 | . . . . . 2 . . . 5 . 8 Traps | -11 -10 -10 -10 -9 -8 -7 -6 -5 -5 -5 -4 ------- Run | Yrd Mat Min Exi Min Mat Fac Fac Fac Upp Upp Fac Traps Triggered 4 | . . . . . 1 1 2 . . . . Indirectly 1 | . . . . . . . 1 . . . . Trap Hack Attempts . | . . . . . . . . . . . . Triggered . | . . . . . . . . . . . . Disarmed . | . . . . . . . . . . . . Reprogrammed . | . . . . . . . . . . . . Reused . | . . . . . . . . . . . . Traps Reconfigurated 10 | . . . . . . 3 3 . 4 . . Traps Extracted . | . . . . . . . . . . . . Installed . | . . . . . . . . . . . . Triggered . | . . . . . . . . . . . . Machines | -11 -10 -10 -10 -9 -8 -7 -6 -5 -5 -5 -4 ---------- Run | Yrd Mat Min Exi Min Mat Fac Fac Fac Upp Upp Fac Machines Disabled 21 | . . . . . 1 . 4 1 . . 15 Max in Single Turn 3 | . . . . . 1 . 2 1 . . 3 Garrison Access 1 | . . . . . . . . 1 . . . Machines Repaired . | . . . . . . . . . . . . Machines Dismantled . | . . . . . . . . . . . . Machines Sabotaged . | . . . . . . . . . . . . Overloaded Fab Kills . | . . . . . . . . . . . . Hacking | -11 -10 -10 -10 -9 -8 -7 -6 -5 -5 -5 -4 --------- Run | Yrd Mat Min Exi Min Mat Fac Fac Fac Upp Upp Fac Machines Accessed 14 | . . 1 2 1 1 2 1 1 1 . 4 Terminals 4 | . . . . . . . . . . . 4 Fabricators . | . . . . . . . . . . . . Repair Stations . | . . . . . . . . . . . . Recycling Units 1 | . . . . . . 1 . . . . . Scanalyzers 3 | . . . . . 1 1 1 . . . . Garrison Access 1 | . . . . . . . . 1 . . . Total Hacks 29 | . . 1 5 1 4 2 1 2 5 . 8 Successful 22 | . . 1 5 1 4 1 . 1 5 . 4 Failed 7 | . . . . . . 1 1 1 . . 4 Catastrophic 3 | . . . . . . 1 . 1 . . 1 Database Lockouts . | . . . . . . . . . . . . Manual 8 | . . . 1 . . . . . . . 7 Terminals 8 | . . . . . . . . . . . 8 Fabricators . | . . . . . . . . . . . . Repair Stations . | . . . . . . . . . . . . Recycling Units 1 | . . . . . . 1 . . . . . Scanalyzers 6 | . . . . . 4 1 1 . . . . Garrison Access 2 | . . . . . . . . 2 . . . Terminal Hacks 16 | . . 1 5 1 . . . . 5 . 4 Record 9 | . . . 4 . . . . . 5 . . Prototype ID Bank 1 | . . . . . . . . . . . 1 Open Door 2 | . . 1 . 1 . . . . . . . Alert Level 1 | . . . . . . . . . . . 1 Unreport Threat 1 | . . . . . . . . . . . 1 Recall Investigation 1 | . . . . . . . . . . . 1 Proto ID Catalog 1 | . . . 1 . . . . . . . . Fabricator Hacks . | . . . . . . . . . . . . Repair Station Hacks . | . . . . . . . . . . . . Recycling Unit Hacks 1 | . . . . . . 1 . . . . . Report Inventory 1 | . . . . . . 1 . . . . . Scanalyzer 4 | . . . . . 4 . . . . . . Insert Component 2 | . . . . . 2 . . . . . . Analyze 2 | . . . . . 2 . . . . . . Garrison Access Hacks 1 | . . . . . . . . 1 . . . Seal Access 1 | . . . . . . . . 1 . . . Unauthorized Hacks . | . . . . . . . . . . . . Terminals . | . . . . . . . . . . . . Fabricators . | . . . . . . . . . . . . Repair Stations . | . . . . . . . . . . . . Recycling Units . | . . . . . . . . . . . . Scanalyzers . | . . . . . . . . . . . . Garrison Access . | . . . . . . . . . . . . Data Cores Recovered . | . . . . . . . . . . . . Used . | . . . . . . . . . . . . Hacking Detections 8 | . . . . . . 2 1 1 . . 4 Full Trace Events . | . . . . . . . . . . . . Feedback Events . | . . . . . . . . . . . . Feedback Blocked . | . . . . . . . . . . . . Robot Schematics Acquired . | . . . . . . . . . . . . Robots Built . | . . . . . . . . . . . . Authchips . | . . . . . . . . . . . . Time . | . . . . . . . . . . . . Total Robot Build Rating . | . . . . . . . . . . . . Part Schematics Acquired 2 | . . . . . 2 . . . . . . Parts Built . | . . . . . . . . . . . . Authchips . | . . . . . . . . . . . . Time . | . . . . . . . . . . . . Total Part Build Rating . | . . . . . . . . . . . . Parts Repaired . | . . . . . . . . . . . . Time . | . . . . . . . . . . . . Parts Recycled . | . . . . . . . . . . . . Recycled Matter . | . . . . . . . . . . . . Retrieved Matter . | . . . . . . . . . . . . Retrieved Components . | . . . . . . . . . . . . Parts Scanalyzed 2 | . . . . . 2 . . . . . . Part Schematics Acquired 2 | . . . . . 2 . . . . . . Parts Damaged . | . . . . . . . . . . . . Bothacking | -11 -10 -10 -10 -9 -8 -7 -6 -5 -5 -5 -4 ------------ Run | Yrd Mat Min Exi Min Mat Fac Fac Fac Upp Upp Fac Used RIF Installer . | . . . . . . . . . . . . Robots Hacked . | . . . . . . . . . . . . Non-combat . | . . . . . . . . . . . . Combat . | . . . . . . . . . . . . Robot Hacks Applied . | . . . . . . . . . . . . Relay Couplers Released . | . . . . . . . . . . . . Fabnet Peak Effective % . | . . . . . . . . . . . . Robots Rewired . | . . . . . . . . . . . . Allies Hacked . | . . . . . . . . . . . . Hacks Repelled . | . . . . . . . . . . . . Allies | -11 -10 -10 -10 -9 -8 -7 -6 -5 -5 -5 -4 -------- Run | Yrd Mat Min Exi Min Mat Fac Fac Fac Upp Upp Fac Total Allies . | . . . . . . . . . . . . Largest Group . | . . . . . . . . . . . . Highest-Rated Group . | . . . . . . . . . . . . Highest-Rated Ally . | . . . . . . . . . . . . Total Orders . | . . . . . . . . . . . . Ally Attacks . | . . . . . . . . . . . . Total Damage . | . . . . . . . . . . . . Kills . | . . . . . . . . . . . . Allies Corrupted . | . . . . . . . . . . . . Allies Melted . | . . . . . . . . . . . . Intel | -11 -10 -10 -10 -9 -8 -7 -6 -5 -5 -5 -4 ------- Run | Yrd Mat Min Exi Min Mat Fac Fac Fac Upp Upp Fac Active Infowar (turns) 5400 | . . 93 781 62 1175 941 956 194 293 . 905 Optics 1727 | . . 93 781 62 791 . . . . . . Terrain 1448 | . . . . . . . 127 194 246 . 881 Seismic 267 | . . . . . . . . . . . 267 Cloaking 6 | . . . . . . . . . 6 . . Jamming 3271 | . . . . . 893 941 956 194 287 . . ECM 59 | . . . . . . 35 . . . . 24 Robot Analysis Total . | . . . . . . . . . . . . Derelict Logs Recovered 3 | . . . . . . . . . 3 . . Drone Launches . | . . . . . . . . . . . . Drone Recoveries . | . . . . . . . . . . . . Exploration | -11 -10 -10 -10 -9 -8 -7 -6 -5 -5 -5 -4 ------------- Run | Yrd Mat Min Exi Min Mat Fac Fac Fac Upp Upp Fac Turns Passed 7037 | 60 97 218 781 62 1175 941 956 194 399 33 2121 Spaces Moved 5023 | 35 53 134 487 28 507 634 676 132 623 69 1645 Core 252 | 6 . . . . . . . . 192 . 54 Treads 923 | 29 53 134 487 28 174 . . . . . 18 Legs 1954 | . . . . . 333 461 657 45 . . 458 Wheels 870 | . . . . . . 173 19 . . . 678 Hover . | . . . . . . . . . . . . Flight 1024 | . . . . . . . . 87 431 69 437 Fastest Speed 32 | 50 160 160 160 160 160 90 90 112 32 40 37 Average Speed 114 | 145 160 160 160 160 196 130 114 112 52 40 89 Slowest Speed 600 | 160 160 160 160 160 270 190 190 120 120 40 600 Overloaded Moves . | . . . . . . . . . . . . Propulsion Burnouts . | . . . . . . . . . . . . Robots Hopped 6 | . . . . . . . . . . . 6 Potential Cave-ins . | . . . . . . . . . . . . Cave-ins Triggered . | . . . . . . . . . . . . Exploration Rate (%) 29 | 4 16 31 92 8 44 21 15 3 81 8 26 Regions Visited 11 Branch Regions 5 Pre-discovered Areas 2 | . . 1 1 . . . . . . . . Known Exits Taken . | . . . . . . . . . . . . Unknown Exits Taken 11 | 1 1 1 1 1 1 1 1 1 1 1 . Scrap Searched 2 | . . . . . . . . . 2 . . Spaces Dug 2 | . . . . . . . . . . . 2 Terrain Destroyed 234 | . . . . . 22 . 8 1 . . 203 Melee . | . . . . . . . . . . . . Projectile 48 | . . . . . . . . 1 . . 47 AOE 186 | . . . . . 22 . 8 . . . 156 Terrain Rammed . | . . . . . . . . . . . . Walls Destroyed . | . . . . . . . . . . . . Machines Disabled . | . . . . . . . . . . . . Actions | -11 -10 -10 -10 -9 -8 -7 -6 -5 -5 -5 -4 --------- Run | Yrd Mat Min Exi Min Mat Fac Fac Fac Upp Upp Fac Total 5796 | 42 57 137 489 40 612 704 783 165 660 72 2035 Wait 178 | . . . . 4 12 7 21 . 6 1 127 Move 5000 | 34 52 133 486 27 506 633 675 131 622 68 1633 Hop 6 | . . . . . . . . . . . 6 Pick Up 61 | 3 1 2 1 4 11 8 13 2 2 . 14 Fast Attach 85 | 5 . 1 . . 6 6 11 4 4 . 48 Attach 55 | . . 1 . . 10 6 9 5 4 1 19 Detach 28 | . . . . . 4 6 4 1 3 1 9 Swap 28 | . . . 1 . 9 6 2 4 1 . 5 Drop 50 | . . . 1 2 8 7 9 11 1 . 11 Fire 269 | . 4 . . 3 40 22 38 7 17 1 137 Melee 3 | . . . . . . 3 . . . . . Ram 25 | . . . . . . . . . . . 25 Kick 6 | . . . . . 4 . 1 . . . 1 Crush 2 | . . . . . 2 . . . . . . Escape Stasis . | . . . . . . . . . . . . Rewire . | . . . . . . . . . . . . Trap . | . . . . . . . . . . . . Miscellaneous . | . . . . . . . . . . . . Route ------- -11/Scrapyard -10/Materials -10/Mines (discovered 2 exits: [*Mat] / *Exi) -10/Exiles (discovered 2 exits: *Min x2) -9/Mines -8/Materials -7/Factory -6/Factory -5/Factory -5/Upper Caves -5/Upper Caves -4/Factory (discovered 3 exits: Res / Upp / Arm) History --------- Turn | Location | Event 6 | -11/Scrapyard | Discovered new exit (range 15) 61 | -11/Scrapyard | Entered Materials 143 | -10/Materials | Discovered new exit (range 8) 158 | -10/Materials | Entered Mines 159 | -10/Mines | Learned location of Storage (-9) 278 | -10/Mines | Met a Derelict who couldn't figure out how to use a Trap Extractor 306 | -10/Mines | Build established: Mutant 317 | -10/Mines | Discovered new exit (range 13) 342 | -10/Mines | Deemed a non-threat by the Exiles lab entrance 342 | -10/Mines | Discovered new exit (range 5) 376 | -10/Mines | Entered Exiles 397 | -10/Exiles | Discovered new exit (range 16) 415 | -10/Exiles | Met 8R-AWN 452 | -10/Exiles | Met EX-HEX 501 | -10/Exiles | Met EX-BIN 524 | -10/Exiles | Aligned with FarCom system 525 | -10/Exiles | Given EX-Vault access code 564 | -10/Exiles | Opened EX-Vault 620 | -10/Exiles | Warned to stay clear of 0b10 Research branches 727 | -10/Exiles | Found Trap Reconfigurator 805 | -10/Exiles | Met EX-DEC 862 | -10/Exiles | Visited The Gauntlet 1065 | -10/Exiles | Learned location of Zion (-7) 1138 | -10/Exiles | Discovered new exit (range 15) 1157 | -10/Exiles | Left Exiles lab with Trap Reconfigurator 1157 | -10/Exiles | Entered Mines 1157 | -9/Mines | Discovered new exit (range 7) 1170 | -9/Mines | Met a Derelict shopkeep closing up shop 1219 | -9/Mines | Entered Materials 1219 | -8/Materials | Evolved 4 slots: Utility x4 1688 | -8/Materials | Lost 5 parts (2n2u1w) 2388 | -8/Materials | Discovered new exit (range 4) 2394 | -8/Materials | Entered Factory 2394 | -7/Factory | Evolved 2 slots: Power x1, Propulsion x1 2650 | -7/Factory | Lost 4 parts (1p1n1u1w) 3306 | -7/Factory | Discovered new exit (range 14) 3335 | -7/Factory | Entered another Factory area 3335 | -6/Factory | Evolved 2 slots: Propulsion x1, Utility x1 3379 | -6/Factory | System corruption reached 10% 4250 | -6/Factory | Discovered new exit (range 9) 4291 | -6/Factory | Entered another Factory area 4291 | -5/Factory | Evolved 2 slots: Propulsion x1, Utility x1 4459 | -5/Factory | Discovered new exit (range 9) 4485 | -5/Factory | Entered Upper Caves 4486 | -5/Upper Caves | Encountered a Warlord checkpoint 4493 | -5/Upper Caves | Learned location of 2 exits from Factory 4619 | -5/Upper Caves | Build established: Hacker-Mutant 4621 | -5/Upper Caves | Attacked by a faux Warlord 4641 | -5/Upper Caves | Attracted the attention of an 0b10 checkpoint 4643 | -5/Upper Caves | Learned Factory terminal intel 4655 | -5/Upper Caves | Learned 8 Factory zone layouts 4655 | -5/Upper Caves | Learned Extension trap positions 4655 | -5/Upper Caves | Learned Factory terminal intel 4658 | -5/Upper Caves | Learned Factory trap positions 4788 | -5/Upper Caves | Core integrity fell below 50% 4806 | -5/Upper Caves | Ambushed by wild Derelicts 4823 | -5/Upper Caves | Lost 8 parts (1p3n3u1w) 4872 | -5/Upper Caves | Discovered new exit (range 9) 4884 | -5/Upper Caves | Entered another Upper Caves area 4913 | -5/Upper Caves | Discovered new exit (range 11) 4917 | -5/Upper Caves | Entered Factory 4917 | -4/Factory | Evolved 2 slots: Utility x2 4918 | -4/Factory | Identified exit to Armory 4918 | -4/Factory | Identified exit to Upper Caves 4919 | -4/Factory | Identified exit to Research 4920 | -4/Factory | Loaded intel: 115 trap records 4921 | -4/Factory | Loaded intel: 26 terminal locations 4996 | -4/Factory | Lost 6 parts (1n4u1w) 5242 | -4/Factory | Lost 6 parts (1p3n2w) 5309 | -4/Factory | Found Prototype Hackware 5309 | -4/Factory | Identified Exp. Hacking Suite 5574 | -4/Factory | Build established: Hacker-Skirmisher 5907 | -4/Factory | Core integrity fell below 50% 5934 | -4/Factory | Lost 5 parts (2n2u1w) 6037 | -4/Factory | Lost 4 parts (2p2n) 6507 | -4/Factory | Build established: Hacker-Mutant 6763 | -4/Factory | Core integrity fell below 20% 6777 | -4/Factory | Garrison activated, responded to threat 6784 | -4/Factory | System corruption reached 10% 6847 | -4/Factory | Lost 12 parts (2p3n4u3w) 6891 | -4/Factory | Build established: Scavenger-Mutant 7038 | -4/Factory | Destroyed by B-60 Warrior with Heavy Mace Last Messages --------------- 06987_ System corrupted: Heat flow error (+236). 06989_ System corrupted: Hpw. Shock Rifle failed to cycle. 07002_ Acquired Hvy. Siege Treads. 07004_ L-61 Swordsman Microactuators blasted off. 07004_ L-61 Swordsman knocked back. 07015_ Wheel destroyed. 07016_ Destroyed Lgt. Antimatter Reactor. 07016_ L-61 Swordsman knocked back. 07017_ L-61 Swordsman system terminally corrupted. 07019_ Hacking Suite destroyed. 07019_ System corrupted by crushing effect (+3). 07021_ Acquired 48 matter. 07029_ ALERT: Potential suspicious activity detected, Programmers report to Factory Zone 7A. 07030_ ALERT: Suspicious intruders detected, dispatching Specialist reinforcements to area. Map ----- +----------------------------------------------------+ | ??????????????????? ## """# # # | | ??????????????????? ## """# # # | | ??????????????????? ## """# # # | | ??????????????????? ## # # """ # | | ??????????????????? ## """# # """ # | | ????????""???? ??? ## """# + """ # | | ????????T ??? ## """# # # | | ???????? ??? ## # # """ # | | ???????? ??? ######### # """ # | | ????????# ??# ] ## #????# # """ # | | ????????# ??# ?????????????????????? | | ????????# ### ??????????????????????? | | ????????# #???????????????????????? | | ????????# ###?????????????????????? | | ????????? #???##????????????????? | | ????????## # #### ??????H???????? | | ????????# # ? ???????????? | | ????????# #?# " " ? ???????????? | | ?????????## #?# " " " ???????????? | | ?????????# g #?# " " " #??????????? | | ?????????# g #?# " " " #??????????? | | ?????????##g g ## #?# " " " #??????????? | | ??????????## # #### " " " #xx????????? | | #+############ # " " " u??????????? | | " + ; " " " #??????????? | | ####### # """ #@" " " #??????????? | | # ## ## """ #b #??????????? | | #] ## ## """ # /% #??????????? | | # !! ## + # #??????????? | | # !] ## ######## % % #??????????? | | # /]] ## ###""#"# #??????????? | | # + + = ! #??????????? | | / ##+##############;##??????????? | | # # ???????????###???????????? | | # # """" ???????????????????????? | | # # """" #??????????????????????? | | # """" #??????????????????????? | | # """" #??????????????????????? | | # # # # ##### #??????????????????????? | | ##########???####??????????????????????????? | | ???????????????????????????????????????????? | | ?????#?????????????????????????????????????? | | ##???#?????????????????????????????????????? | | ???????????????????????????????????????????? | | ???##???##############?????????????????????? | | ????????# #?????????????????????? | | ???????# #?????????????????????? | | ????????# #?????????????????????? | | ?????#??# #?????????????????????? | | ????????# #?????????????????????? | +----------------------------------------------------+ Best States ------------- Heat Dissipation 85 Coolant Potential 100 Energy Generation 31 Energy Capacity 410 Matter Stores 300 Matter Capacity 300 Sight Range 20 Terrain Scan Range 24 Terrain Scan Density 110 ECM Strength 2 Jamming Range 12 Cloak Strength 3 Power Amplification 20 Base Temperature (-) 100 Armor Coverage 225 Resistance: KI 30 Resistance: TH 20 Evasion (%) 63 Targeting Accuracy 8 Target Analysis 12 Core Analysis 6 Recoil Reduction 2 Energy Filtering 30 Particle Charging 20 Offensive Hacking 36 Defensive Hacking 34 Item Schematics ----------------- Cryofiber Web | -8/Materials | Scanalyzed Lightning Gun | -8/Materials | Scanalyzed Robot Schematics ------------------ None Fabricated ------------ Nothing Repaired ---------- Nothing Alien Tech Used ----------------- None Achievements -------------- None Challenges ------------ None Game ------ Seed HellfireCommDeflector Manual? 0 Play Time 01:09:49 Cumulative 99.9 hours Start 2025.05.28 @ 14:47:16 End 2025.05.28 @ 17:15:17 Sessions 3 Manual Loads 0 Difficulty Rogue Special Mode None Game No. 195 Rogue 195 Adventurer 0 Explorer 0 Win Type - Total 0 Types 0/0/0/0/0/0/0/0/0/0 Lore% 25 Gallery% 43 Achievement% 34 Wizard Run 0 Options --------- Layout 1 ASCII 0 Keyboard 1 Movement Arrows Keybinds 0 Fullscreen 2 Font 24/Smallcaps Map View 50x35 Zoom Use 0% Tactical HUD 1 Map Filters NONE Filters NONE Steam 1 RUN: 069cedd4-3aee-4eb1-aaa2-cf58de48c7a2